[Event "Titled Tuesday Blitz August 15 Early 2023"]
[White "Namitbir Singh Walia"]
[Black "Aung Thant Zin"]
[WhiteFideId "35071068"]
[BlackFideId "13000063"]
[WhiteElo "2399"]
[BlackElo "2146"]
[Result "1-0"]
[Round "5"]
[TimeControl "180+1"]
[Date "2023.08.15"]
[WhiteClock "0:00:03"]
[BlackClock "0:00:03"]
[Board "184"]

1. e4 {[%clk 0:03:00]}  c5 {[%clk 0:02:52]} 2. Nf3 {[%clk 0:03:01]}  Nc6 {[%clk 0:02:52]} 3. d4 {[%clk 0:03:01]}  cxd4 {[%clk 0:02:53]} 4. Nxd4 {[%clk 0:03:02]}  Nf6 {[%clk 0:02:54]} 5. Nc3 {[%clk 0:03:01]}  d6 {[%clk 0:02:54]} 6. Bg5 {[%clk 0:02:56]}  e6 {[%clk 0:02:55]} 7. Qd2 {[%clk 0:02:51]}  a6 {[%clk 0:02:55]} 8. O-O-O {[%clk 0:02:47]}  h6 {[%clk 0:02:55]} 9. Bh4 {[%clk 0:02:44]}  Nxe4 {[%clk 0:02:54]} 10. Nxe4 {[%clk 0:02:00]}  Qxh4 {[%clk 0:02:51]} 11. f3 {[%clk 0:01:59]}  d5 {[%clk 0:02:47]} 12. Nxc6 {[%clk 0:01:51]}  bxc6 {[%clk 0:02:46]} 13. g3 {[%clk 0:01:51]}  Qd8 {[%clk 0:02:39]} 14. Qd4 {[%clk 0:01:49]}  Be7 {[%clk 0:02:10]} 15. Qxg7 {[%clk 0:01:42]}  Rf8 {[%clk 0:02:03]} 16. Qc3 {[%clk 0:00:51]}  Bd7 {[%clk 0:01:22]} 17. Nc5 {[%clk 0:00:48]}  Rb8 {[%clk 0:01:13]} 18. Nxd7 {[%clk 0:00:32]}  Kxd7 {[%clk 0:01:06]} 19. Bc4 {[%clk 0:00:30]}  Bf6 {[%clk 0:01:03]} 20. Qd3 {[%clk 0:00:24]}  Bxb2+ {[%clk 0:00:55]} 21. Kd2 {[%clk 0:00:25]}  Be5 {[%clk 0:00:39]} 22. Bb3 {[%clk 0:00:22]}  Qa5+ {[%clk 0:00:35]} 23. Ke2 {[%clk 0:00:22]}  Bd6 {[%clk 0:00:31]} 24. c4 {[%clk 0:00:21]}  Qb4 {[%clk 0:00:19]} 25. Rhe1 {[%clk 0:00:20]}  a5 {[%clk 0:00:19]} 26. cxd5 {[%clk 0:00:19]}  cxd5 {[%clk 0:00:17]} 27. Kf1 {[%clk 0:00:14]}  a4 {[%clk 0:00:16]} 28. Bxd5 {[%clk 0:00:15]}  exd5 {[%clk 0:00:14]} 29. Qf5+ {[%clk 0:00:15]}  Kc7 {[%clk 0:00:14]} 30. Rc1+ {[%clk 0:00:16]}  Bc5 {[%clk 0:00:13]} 31. Qxd5 {[%clk 0:00:15]}  Kb6 {[%clk 0:00:11]} 32. Rb1 {[%clk 0:00:14]}  Rfd8 {[%clk 0:00:11]} 33. Rxb4+ {[%clk 0:00:14]}  Bxb4 {[%clk 0:00:11]} 34. Qxf7 {[%clk 0:00:09]}  Bxe1 {[%clk 0:00:10]} 35. Kxe1 {[%clk 0:00:10]}  Re8+ {[%clk 0:00:11]} 36. Kf2 {[%clk 0:00:10]}  Rbd8 {[%clk 0:00:11]} 37. Qf6+ {[%clk 0:00:09]}  Kc7 {[%clk 0:00:10]} 38. Qc3+ {[%clk 0:00:09]}  Kb7 {[%clk 0:00:09]} 39. Qb4+ {[%clk 0:00:09]}  Kc7 {[%clk 0:00:10]} 40. Qa5+ {[%clk 0:00:10]}  Kb7 {[%clk 0:00:10]} 41. Qb5+ {[%clk 0:00:10]}  Kc7 {[%clk 0:00:11]} 42. g4 {[%clk 0:00:10]}  Rd2+ {[%clk 0:00:10]} 43. Kg3 {[%clk 0:00:10]}  Ree2 {[%clk 0:00:11]} 44. Qxa4 {[%clk 0:00:10]}  Rg2+ {[%clk 0:00:10]} 45. Kf4 {[%clk 0:00:11]}  Rxh2 {[%clk 0:00:11]} 46. Qc4+ {[%clk 0:00:11]}  Kd6 {[%clk 0:00:11]} 47. a4 {[%clk 0:00:11]}  Ra2 {[%clk 0:00:11]} 48. a5 {[%clk 0:00:11]}  Rhc2 {[%clk 0:00:11]} 49. Qb4+ {[%clk 0:00:11]}  Kc6 {[%clk 0:00:10]} 50. Qf8 {[%clk 0:00:10]}  Ra4+ {[%clk 0:00:08]} 51. Kg3 {[%clk 0:00:10]}  Rca2 {[%clk 0:00:07]} 52. Qxh6+ {[%clk 0:00:09]}  Kd5 {[%clk 0:00:05]} 53. Qg5+ {[%clk 0:00:10]}  Kd4 {[%clk 0:00:06]} 54. Qf4+ {[%clk 0:00:10]}  Kd3 {[%clk 0:00:07]} 55. Qf5+ {[%clk 0:00:10]}  Ke2 {[%clk 0:00:07]} 56. Qe5+ {[%clk 0:00:09]}  Kf1 {[%clk 0:00:07]} 57. Qc5 {[%clk 0:00:07]}  Ke2 {[%clk 0:00:08]} 58. Qb5+ {[%clk 0:00:07]}  Ke1 {[%clk 0:00:08]} 59. g5 {[%clk 0:00:07]}  Rxa5 {[%clk 0:00:08]} 60. Qe8+ {[%clk 0:00:07]}  Kf1 {[%clk 0:00:07]} 61. f4 {[%clk 0:00:07]}  R2a3+ {[%clk 0:00:06]} 62. Kg4 {[%clk 0:00:07]}  R3a4 {[%clk 0:00:07]} 63. g6 {[%clk 0:00:06]}  Ra2 {[%clk 0:00:07]} 64. f5 {[%clk 0:00:04]}  Rg2+ {[%clk 0:00:07]} 65. Kf4 {[%clk 0:00:04]}  Rf2+ {[%clk 0:00:07]} 66. Kg5 {[%clk 0:00:05]}  Rfxf5+ {[%clk 0:00:06]} 67. Kh6 {[%clk 0:00:05]}  Rh5+ {[%clk 0:00:04]} 68. Kg7 {[%clk 0:00:04]}  Rag5 {[%clk 0:00:05]} 69. Qe6 {[%clk 0:00:02]}  Kg2 {[%clk 0:00:02]} 70. Qc6+ {[%clk 0:00:02]}  Kg3 {[%clk 0:00:02]} 71. Qd6+ {[%clk 0:00:02]}  Kg4 {[%clk 0:00:03]} 72. Qe6+ {[%clk 0:00:03]}  Kf4 {[%clk 0:00:03]} 73. Qd6+ {[%clk 0:00:03]}  Kg4 {[%clk 0:00:04]} 74. Qd1+ {[%clk 0:00:02]}  Kf4 {[%clk 0:00:02]} 75. Qd4+ {[%clk 0:00:03]}  Kf5 {[%clk 0:00:03]} 76. Qf6+ {[%clk 0:00:03]}  Kg4 {[%clk 0:00:03]} 77. Kf7 {[%clk 0:00:04]}  Kg3 {[%clk 0:00:03]} 78. Qc3+ {[%clk 0:00:03]}  Kh4 {[%clk 0:00:01]} 79. Qd4+ {[%clk 0:00:04]}  Rg4 {[%clk 0:00:02]} 80. Qf2+ {[%clk 0:00:04]}  Rg3 {[%clk 0:00:02]} 81. g7 {[%clk 0:00:04]}  Rg5 {[%clk 0:00:02]} 82. Qh2+ {[%clk 0:00:02]}  Kg4 {[%clk 0:00:02]} 83. g8=Q {[%clk 0:00:02]}  Rxg8 {[%clk 0:00:03]} 84. Kxg8 {[%clk 0:00:02]}  Kf4+ {[%clk 0:00:03]} 85. Kf7 {[%clk 0:00:02]}  Kg4 {[%clk 0:00:04]} 86. Ke6 {[%clk 0:00:02]}  Kf4 {[%clk 0:00:04]} 87. Kd5 {[%clk 0:00:02]}  Kg4 {[%clk 0:00:04]} 88. Qd2 {[%clk 0:00:02]}  Kh5 {[%clk 0:00:03]} 89. Ke5 {[%clk 0:00:02]}  Rg5+ {[%clk 0:00:03]} 90. Kf6 {[%clk 0:00:03]}  Rg4 {[%clk 0:00:04]} 91. Qh2+ {[%clk 0:00:03]}  Rh4 {[%clk 0:00:03]} 92. Qe2+ {[%clk 0:00:04]}  Kh6 {[%clk 0:00:03]} 93. Qe3+ {[%clk 0:00:02]}  Kh5 {[%clk 0:00:03]} 94. Qg5# {[%clk 0:00:03]} 1-0


[Site "https://www.chess.com"]

[Event "Titled Tuesday Blitz August 15 Early 2023"]
[White "Sava, Christiansen-Danut-Eugen"]
[Black "Jakubowska, Anna"]
[WhiteFideId "1210114"]
[BlackFideId "1121952"]
[WhiteElo "2122"]
[BlackElo "2383"]
[Result "1-0"]
[Round "5"]
[TimeControl "180+1"]
[Date "2023.08.15"]
[WhiteClock "0:00:08"]
[BlackClock "0:00:00"]
[Board "187"]

1. d4 {[%clk 0:03:00]}  f5 {[%clk 0:02:59]} 2. c4 {[%clk 0:02:57]}  Nf6 {[%clk 0:02:58]} 3. Nc3 {[%clk 0:02:54]}  e6 {[%clk 0:02:56]} 4. g3 {[%clk 0:02:51]}  Bb4 {[%clk 0:02:55]} 5. Bg2 {[%clk 0:02:51]}  O-O {[%clk 0:02:55]} 6. Nh3 {[%clk 0:02:51]}  d6 {[%clk 0:02:52]} 7. O-O {[%clk 0:02:50]}  Bxc3 {[%clk 0:02:52]} 8. bxc3 {[%clk 0:02:47]}  Qe7 {[%clk 0:02:50]} 9. Nf4 {[%clk 0:02:44]}  c6 {[%clk 0:02:45]} 10. Ba3 {[%clk 0:02:44]}  g5 {[%clk 0:02:28]} 11. Nd3 {[%clk 0:02:40]}  Na6 {[%clk 0:02:17]} 12. f4 {[%clk 0:02:27]}  g4 {[%clk 0:02:12]} 13. Nf2 {[%clk 0:02:25]}  Qf7 {[%clk 0:01:59]} 14. Bxd6 {[%clk 0:02:23]}  Rd8 {[%clk 0:01:59]} 15. Ba3 {[%clk 0:02:18]}  c5 {[%clk 0:01:59]} 16. e4 {[%clk 0:02:09]}  Rb8 {[%clk 0:01:56]} 17. e5 {[%clk 0:02:08]}  Ne8 {[%clk 0:01:49]} 18. d5 {[%clk 0:02:07]}  b6 {[%clk 0:01:45]} 19. d6 {[%clk 0:01:58]}  Bb7 {[%clk 0:01:39]} 20. Bxb7 {[%clk 0:01:49]}  Qxb7 {[%clk 0:01:40]} 21. Qa4 {[%clk 0:01:47]}  Rbc8 {[%clk 0:01:30]} 22. Rad1 {[%clk 0:01:36]}  Nb8 {[%clk 0:01:29]} 23. Rd3 {[%clk 0:01:24]}  Rd7 {[%clk 0:01:29]} 24. Rb1 {[%clk 0:01:22]}  h5 {[%clk 0:01:21]} 25. Qd1 {[%clk 0:00:58]}  Ng7 {[%clk 0:01:19]} 26. h4 {[%clk 0:00:54]}  gxh3 {[%clk 0:00:58]} 27. Nxh3 {[%clk 0:00:38]}  Qa6 {[%clk 0:00:58]} 28. Qb3 {[%clk 0:00:30]}  Qb7 {[%clk 0:00:46]} 29. Re3 {[%clk 0:00:29]}  Kh8 {[%clk 0:00:39]} 30. Rb2 {[%clk 0:00:28]}  Rg8 {[%clk 0:00:23]} 31. Ng5 {[%clk 0:00:28]}  Qc8 {[%clk 0:00:13]} 32. Rh2 {[%clk 0:00:26]}  Qe8 {[%clk 0:00:13]} 33. Qd1 {[%clk 0:00:20]}  Qg6 {[%clk 0:00:13]} 34. Kf1 {[%clk 0:00:18]}  Nc6 {[%clk 0:00:12]} 35. Bc1 {[%clk 0:00:17]}  Na5 {[%clk 0:00:12]} 36. Qe2 {[%clk 0:00:17]}  Rgd8 {[%clk 0:00:11]} 37. Kf2 {[%clk 0:00:15]}  Kg8 {[%clk 0:00:11]} 38. Bd2 {[%clk 0:00:15]}  b5 {[%clk 0:00:10]} 39. cxb5 {[%clk 0:00:15]}  c4 {[%clk 0:00:11]} 40. a4 {[%clk 0:00:15]}  Nb7 {[%clk 0:00:11]} 41. Rf3 {[%clk 0:00:14]}  Nc5 {[%clk 0:00:11]} 42. a5 {[%clk 0:00:13]}  Nd3+ {[%clk 0:00:11]} 43. Rxd3 {[%clk 0:00:13]}  cxd3 {[%clk 0:00:11]} 44. Qxd3 {[%clk 0:00:14]}  h4 {[%clk 0:00:11]} 45. Rxh4 {[%clk 0:00:14]}  Nh5 {[%clk 0:00:11]} 46. Qf3 {[%clk 0:00:13]}  Ng7 {[%clk 0:00:10]} 47. c4 {[%clk 0:00:13]}  Rc8 {[%clk 0:00:09]} 48. Qe2 {[%clk 0:00:12]}  Rb7 {[%clk 0:00:02]} 49. Nh7 {[%clk 0:00:10]}  Kf7 {[%clk 0:00:02]} 50. Nf6 {[%clk 0:00:09]}  Rd8 {[%clk 0:00:01]} 51. c5 {[%clk 0:00:08]}  Rdb8 {[%clk 0:00:00]} 52. b6 {[%clk 0:00:08]} 1-0


[Site "https://www.chess.com"]

[Event "Titled Tuesday Blitz August 15 Early 2023"]
[White "Rietze, Clemens, Dr."]
[Black "Daurelle, Herve"]
[WhiteFideId "24620351"]
[BlackFideId "602655"]
[WhiteElo "2374"]
[BlackElo "2115"]
[Result "1-0"]
[Round "5"]
[TimeControl "180+1"]
[Date "2023.08.15"]
[WhiteClock "0:01:42"]
[BlackClock "0:00:00"]
[Board "188"]

1. d4 {[%clk 0:02:52]}  Nf6 {[%clk 0:01:53]} 2. c4 {[%clk 0:02:50]}  e6 {[%clk 0:01:54]} 3. Nf3 {[%clk 0:02:50]}  d5 {[%clk 0:01:54]} 4. Nc3 {[%clk 0:02:51]}  c5 {[%clk 0:01:53]} 5. cxd5 {[%clk 0:02:50]}  Nxd5 {[%clk 0:01:53]} 6. e3 {[%clk 0:02:50]}  Nxc3 {[%clk 0:01:49]} 7. bxc3 {[%clk 0:02:51]}  g6 {[%clk 0:01:49]} 8. h4 {[%clk 0:02:50]}  h5 {[%clk 0:01:47]} 9. Bd3 {[%clk 0:02:48]}  Bg7 {[%clk 0:01:46]} 10. O-O {[%clk 0:02:45]}  cxd4 {[%clk 0:01:45]} 11. cxd4 {[%clk 0:02:45]}  Nc6 {[%clk 0:01:45]} 12. Ba3 {[%clk 0:02:43]}  Qa5 {[%clk 0:01:44]} 13. Bd6 {[%clk 0:02:41]}  Bd7 {[%clk 0:01:37]} 14. Qb3 {[%clk 0:02:38]}  Qb6 {[%clk 0:01:33]} 15. Qc3 {[%clk 0:02:25]}  Qa5 {[%clk 0:01:27]} 16. Qb2 {[%clk 0:02:23]}  Qb6 {[%clk 0:01:21]} 17. Qxb6 {[%clk 0:02:08]}  axb6 {[%clk 0:01:21]} 18. Rfb1 {[%clk 0:02:09]}  b5 {[%clk 0:00:56]} 19. Rxb5 {[%clk 0:01:58]}  Nxd4 {[%clk 0:00:55]} 20. exd4 {[%clk 0:01:55]}  Bxb5 {[%clk 0:00:50]} 21. Bxb5+ {[%clk 0:01:56]}  Kd8 {[%clk 0:00:50]} 22. Ne5 {[%clk 0:01:54]}  Bxe5 {[%clk 0:00:44]} 23. dxe5 {[%clk 0:01:55]}  Rc8 {[%clk 0:00:35]} 24. a4 {[%clk 0:01:51]}  Rc2 {[%clk 0:00:29]} 25. Ra3 {[%clk 0:01:51]}  Kc8 {[%clk 0:00:28]} 26. Rf3 {[%clk 0:01:49]}  Rh7 {[%clk 0:00:18]} 27. Be8 {[%clk 0:01:49]}  Rc1+ {[%clk 0:00:14]} 28. Kh2 {[%clk 0:01:49]}  Rc4 {[%clk 0:00:10]} 29. Kh3 {[%clk 0:01:49]}  Kd8 {[%clk 0:00:08]} 30. Bb5 {[%clk 0:01:45]}  Rd4 {[%clk 0:00:05]} 31. Ra3 {[%clk 0:01:42]}  f6 {[%clk 0:00:01]} 32. a5 {[%clk 0:01:42]}  Rxd6 {[%clk 0:00:01]} 33. exd6 {[%clk 0:01:42]}  g5 {[%clk 0:00:02]} 34. hxg5 {[%clk 0:01:42]}  fxg5 {[%clk 0:00:02]} 35. a6 {[%clk 0:01:41]}  bxa6 {[%clk 0:00:00]} 36. Rxa6 {[%clk 0:01:42]} 1-0


[Site "https://www.chess.com"]

[Event "Titled Tuesday Blitz August 15 Early 2023"]
[White "Souza Neves, Andrey M."]
[Black "arturdailima"]
[WhiteFideId "2101815"]
[WhiteElo "2096"]
[BlackElo "2357"]
[Result "0-1"]
[Round "5"]
[TimeControl "180+1"]
[Date "2023.08.15"]
[WhiteClock "0:00:21"]
[BlackClock "0:01:21"]
[Board "191"]

1. d4 {[%clk 0:02:34]}  Nf6 {[%clk 0:02:55]} 2. c4 {[%clk 0:02:33]}  g6 {[%clk 0:02:55]} 3. Nc3 {[%clk 0:02:33]}  Bg7 {[%clk 0:02:56]} 4. e4 {[%clk 0:02:32]}  d6 {[%clk 0:02:57]} 5. Nf3 {[%clk 0:02:32]}  O-O {[%clk 0:02:57]} 6. Be2 {[%clk 0:02:32]}  Bg4 {[%clk 0:02:57]} 7. Be3 {[%clk 0:02:30]}  e5 {[%clk 0:02:51]} 8. Qd2 {[%clk 0:02:28]}  Nc6 {[%clk 0:02:50]} 9. O-O-O {[%clk 0:02:25]}  Bxf3 {[%clk 0:02:44]} 10. Bxf3 {[%clk 0:02:17]}  Nxd4 {[%clk 0:02:44]} 11. Bxd4 {[%clk 0:02:16]}  exd4 {[%clk 0:02:44]} 12. Qxd4 {[%clk 0:02:10]}  Re8 {[%clk 0:02:44]} 13. Qd2 {[%clk 0:02:05]}  a6 {[%clk 0:02:37]} 14. Kb1 {[%clk 0:02:04]}  Nd7 {[%clk 0:02:29]} 15. Be2 {[%clk 0:01:59]}  Bxc3 {[%clk 0:02:16]} 16. Qxc3 {[%clk 0:02:00]}  Rxe4 {[%clk 0:02:15]} 17. Bf3 {[%clk 0:01:59]}  Rf4 {[%clk 0:02:09]} 18. Bxb7 {[%clk 0:01:55]}  Rb8 {[%clk 0:02:08]} 19. Bf3 {[%clk 0:01:54]}  Ne5 {[%clk 0:02:06]} 20. h4 {[%clk 0:01:41]}  Qf6 {[%clk 0:02:03]} 21. Rh3 {[%clk 0:01:26]}  Nxc4 {[%clk 0:01:53]} 22. Qxf6 {[%clk 0:01:18]}  Rxf6 {[%clk 0:01:52]} 23. b3 {[%clk 0:01:16]}  Ne5 {[%clk 0:01:51]} 24. Rc1 {[%clk 0:01:08]}  c5 {[%clk 0:01:50]} 25. Rc3 {[%clk 0:01:02]}  Rb4 {[%clk 0:01:49]} 26. h5 {[%clk 0:01:00]}  g5 {[%clk 0:01:39]} 27. h6 {[%clk 0:00:51]}  g4 {[%clk 0:01:38]} 28. Rg3 {[%clk 0:00:51]}  Kf8 {[%clk 0:01:37]} 29. Bd5 {[%clk 0:00:46]}  Rxf2 {[%clk 0:01:35]} 30. a3 {[%clk 0:00:45]}  Rd4 {[%clk 0:01:34]} 31. Bc4 {[%clk 0:00:31]}  Rd1+ {[%clk 0:01:27]} 32. Rc1 {[%clk 0:00:30]}  Rdd2 {[%clk 0:01:27]} 33. b4 {[%clk 0:00:29]}  cxb4 {[%clk 0:01:23]} 34. axb4 {[%clk 0:00:28]}  Rb2+ {[%clk 0:01:23]} 35. Ka1 {[%clk 0:00:28]}  Rxb4 {[%clk 0:01:24]} 36. Ra3 {[%clk 0:00:21]}  Rxc4 {[%clk 0:01:21]} 0-1


[Site "https://www.chess.com"]

[Event "Titled Tuesday Blitz August 15 Early 2023"]
[White "Polaczek, Richard"]
[Black "Kriti Mayur Patel"]
[WhiteFideId "200026"]
[BlackFideId "35061780"]
[WhiteElo "2346"]
[BlackElo "2071"]
[Result "1-0"]
[Round "5"]
[TimeControl "180+1"]
[Date "2023.08.15"]
[WhiteClock "0:00:24"]
[BlackClock "0:00:21"]
[Board "193"]

1. d4 {[%clk 0:02:59]}  d5 {[%clk 0:03:00]} 2. c4 {[%clk 0:02:58]}  e6 {[%clk 0:03:00]} 3. Nc3 {[%clk 0:02:57]}  Nf6 {[%clk 0:03:01]} 4. cxd5 {[%clk 0:02:56]}  exd5 {[%clk 0:03:01]} 5. Bg5 {[%clk 0:02:55]}  Be7 {[%clk 0:03:01]} 6. e3 {[%clk 0:02:54]}  O-O {[%clk 0:03:01]} 7. Bd3 {[%clk 0:02:54]}  c6 {[%clk 0:03:01]} 8. Nge2 {[%clk 0:02:54]}  Nbd7 {[%clk 0:03:02]} 9. O-O {[%clk 0:02:53]}  Re8 {[%clk 0:03:02]} 10. Qc2 {[%clk 0:02:52]}  Nf8 {[%clk 0:03:03]} 11. f3 {[%clk 0:02:50]}  g6 {[%clk 0:03:03]} 12. Bh4 {[%clk 0:02:41]}  Ne6 {[%clk 0:03:03]} 13. Bf2 {[%clk 0:02:39]}  b5 {[%clk 0:03:03]} 14. Rad1 {[%clk 0:02:38]}  Bb7 {[%clk 0:03:00]} 15. e4 {[%clk 0:02:36]}  Rc8 {[%clk 0:02:58]} 16. e5 {[%clk 0:02:33]}  Nh5 {[%clk 0:02:54]} 17. Qd2 {[%clk 0:02:15]}  Bg5 {[%clk 0:02:49]} 18. Be3 {[%clk 0:02:14]}  c5 {[%clk 0:02:42]} 19. Bxg5 {[%clk 0:02:00]}  Qxg5 {[%clk 0:02:41]} 20. Bxb5 {[%clk 0:01:56]}  cxd4 {[%clk 0:02:31]} 21. Nxd4 {[%clk 0:01:40]}  Qxd2 {[%clk 0:02:18]} 22. Rxd2 {[%clk 0:01:38]}  Re7 {[%clk 0:02:11]} 23. Nxe6 {[%clk 0:01:23]}  Rxe6 {[%clk 0:02:06]} 24. f4 {[%clk 0:01:19]}  Rd8 {[%clk 0:01:59]} 25. g4 {[%clk 0:01:11]}  Ng7 {[%clk 0:01:42]} 26. Rfd1 {[%clk 0:01:11]}  Rb6 {[%clk 0:01:39]} 27. Ba4 {[%clk 0:01:05]}  Ne6 {[%clk 0:01:29]} 28. f5 {[%clk 0:00:57]}  Nc5 {[%clk 0:01:19]} 29. b3 {[%clk 0:00:44]}  Rb4 {[%clk 0:01:04]} 30. Rd4 {[%clk 0:00:41]}  a5 {[%clk 0:00:58]} 31. Rxb4 {[%clk 0:00:40]}  axb4 {[%clk 0:00:58]} 32. Nb5 {[%clk 0:00:37]}  Bc6 {[%clk 0:00:49]} 33. Rc1 {[%clk 0:00:34]}  Bxb5 {[%clk 0:00:45]} 34. Rxc5 {[%clk 0:00:33]}  Bxa4 {[%clk 0:00:42]} 35. bxa4 {[%clk 0:00:33]}  d4 {[%clk 0:00:43]} 36. Kf2 {[%clk 0:00:32]}  d3 {[%clk 0:00:40]} 37. Ke1 {[%clk 0:00:32]}  d2+ {[%clk 0:00:38]} 38. Kd1 {[%clk 0:00:32]}  Rd4 {[%clk 0:00:38]} 39. a5 {[%clk 0:00:31]}  Rxg4 {[%clk 0:00:37]} 40. a6 {[%clk 0:00:31]}  Rg1+ {[%clk 0:00:32]} 41. Kxd2 {[%clk 0:00:31]}  Rg2+ {[%clk 0:00:32]} 42. Kd3 {[%clk 0:00:31]}  Rxa2 {[%clk 0:00:33]} 43. e6 {[%clk 0:00:29]}  fxe6 {[%clk 0:00:31]} 44. fxe6 {[%clk 0:00:29]}  Rxa6 {[%clk 0:00:30]} 45. Rc8+ {[%clk 0:00:27]}  Kg7 {[%clk 0:00:30]} 46. e7 {[%clk 0:00:28]}  Re6 {[%clk 0:00:23]} 47. e8=Q {[%clk 0:00:26]}  Rxe8 {[%clk 0:00:22]} 48. Rxe8 {[%clk 0:00:26]}  b3 {[%clk 0:00:23]} 49. Rb8 {[%clk 0:00:26]}  Kh6 {[%clk 0:00:23]} 50. Rxb3 {[%clk 0:00:26]}  Kh5 {[%clk 0:00:24]} 51. Ke2 {[%clk 0:00:26]}  g5 {[%clk 0:00:24]} 52. Kf2 {[%clk 0:00:26]}  h6 {[%clk 0:00:24]} 53. Kg3 {[%clk 0:00:27]}  g4 {[%clk 0:00:24]} 54. Rb5+ {[%clk 0:00:26]}  Kg6 {[%clk 0:00:24]} 55. Kxg4 {[%clk 0:00:27]}  Kf6 {[%clk 0:00:24]} 56. Kh5 {[%clk 0:00:27]}  Kg7 {[%clk 0:00:24]} 57. Rb6 {[%clk 0:00:26]}  Kh7 {[%clk 0:00:24]} 58. Rb7+ {[%clk 0:00:25]}  Kh8 {[%clk 0:00:22]} 59. Kg6 {[%clk 0:00:24]}  h5 {[%clk 0:00:22]} 60. h4 {[%clk 0:00:24]}  Kg8 {[%clk 0:00:21]} 61. Rb8# {[%clk 0:00:24]} 1-0


[Site "https://www.chess.com"]

[Event "Titled Tuesday Blitz August 15 Early 2023"]
[White "cthake"]
[Black "Sovetbekova, Nurai"]
[BlackFideId "13801910"]
[WhiteElo "1821"]
[BlackElo "2334"]
[Result "0-1"]
[Round "5"]
[TimeControl "180+1"]
[Date "2023.08.15"]
[WhiteClock "0:00:00"]
[BlackClock "0:00:05"]
[Board "197"]

1. e4 {[%clk 0:03:00]}  c5 {[%clk 0:02:55]} 2. Nc3 {[%clk 0:02:58]}  Nc6 {[%clk 0:02:52]} 3. f4 {[%clk 0:02:56]}  g6 {[%clk 0:02:48]} 4. Nf3 {[%clk 0:02:56]}  Bg7 {[%clk 0:02:48]} 5. Bb5 {[%clk 0:02:52]}  Nd4 {[%clk 0:02:44]} 6. Bc4 {[%clk 0:02:41]}  e6 {[%clk 0:02:41]} 7. O-O {[%clk 0:02:36]}  Ne7 {[%clk 0:02:39]} 8. Nxd4 {[%clk 0:02:30]}  cxd4 {[%clk 0:02:37]} 9. Ne2 {[%clk 0:02:29]}  O-O {[%clk 0:02:37]} 10. d3 {[%clk 0:02:27]}  d5 {[%clk 0:02:36]} 11. Bb3 {[%clk 0:02:26]}  b6 {[%clk 0:02:30]} 12. e5 {[%clk 0:02:20]}  Nf5 {[%clk 0:02:27]} 13. Qe1 {[%clk 0:02:16]}  Ba6 {[%clk 0:02:18]} 14. Ng3 {[%clk 0:01:58]}  Rc8 {[%clk 0:01:51]} 15. Nxf5 {[%clk 0:01:56]}  exf5 {[%clk 0:01:50]} 16. Qf2 {[%clk 0:01:53]}  f6 {[%clk 0:01:41]} 17. Re1 {[%clk 0:01:43]}  fxe5 {[%clk 0:01:38]} 18. fxe5 {[%clk 0:01:42]}  Re8 {[%clk 0:01:37]} 19. Qxd4 {[%clk 0:01:33]}  Bb7 {[%clk 0:01:37]} 20. Qf4 {[%clk 0:01:24]}  Qc7 {[%clk 0:01:22]} 21. d4 {[%clk 0:01:22]}  h6 {[%clk 0:01:15]} 22. c3 {[%clk 0:01:20]}  g5 {[%clk 0:01:14]} 23. Qf3 {[%clk 0:01:19]}  Qf7 {[%clk 0:01:11]} 24. Bd2 {[%clk 0:01:13]}  f4 {[%clk 0:01:05]} 25. Bc2 {[%clk 0:01:07]}  Rc7 {[%clk 0:00:54]} 26. Qg4 {[%clk 0:01:05]}  Bc8 {[%clk 0:00:53]} 27. Qf3 {[%clk 0:01:03]}  Rf8 {[%clk 0:00:51]} 28. h3 {[%clk 0:01:02]}  h5 {[%clk 0:00:50]} 29. Qd3 {[%clk 0:01:00]}  Bf5 {[%clk 0:00:43]} 30. e6 {[%clk 0:01:01]}  Qg6 {[%clk 0:00:32]} 31. Qf3 {[%clk 0:00:45]}  Bxc2 {[%clk 0:00:30]} 32. e7 {[%clk 0:00:43]}  Re8 {[%clk 0:00:25]} 33. Qxd5+ {[%clk 0:00:43]}  Qf7 {[%clk 0:00:24]} 34. Qxg5 {[%clk 0:00:40]}  Rcxe7 {[%clk 0:00:21]} 35. Rxe7 {[%clk 0:00:33]}  Rxe7 {[%clk 0:00:18]} 36. Bxf4 {[%clk 0:00:33]}  Re2 {[%clk 0:00:15]} 37. Rf1 {[%clk 0:00:29]}  Qg6 {[%clk 0:00:11]} 38. Qd8+ {[%clk 0:00:27]}  Kh7 {[%clk 0:00:11]} 39. g3 {[%clk 0:00:24]}  Be4 {[%clk 0:00:09]} 40. Rf2 {[%clk 0:00:22]}  Rxf2 {[%clk 0:00:09]} 41. Kxf2 {[%clk 0:00:21]}  Qf5 {[%clk 0:00:07]} 42. Qh4 {[%clk 0:00:20]}  Bb1 {[%clk 0:00:07]} 43. Qe7 {[%clk 0:00:18]}  Qc2+ {[%clk 0:00:07]} 44. Ke3 {[%clk 0:00:16]}  Qd3+ {[%clk 0:00:06]} 45. Kf2 {[%clk 0:00:16]}  Qc2+ {[%clk 0:00:06]} 46. Qe2 {[%clk 0:00:16]}  Qxe2+ {[%clk 0:00:06]} 47. Kxe2 {[%clk 0:00:16]}  Bxa2 {[%clk 0:00:07]} 48. Bb8 {[%clk 0:00:15]}  a6 {[%clk 0:00:07]} 49. Ba7 {[%clk 0:00:15]}  b5 {[%clk 0:00:07]} 50. Bc5 {[%clk 0:00:15]}  Kg6 {[%clk 0:00:07]} 51. Ke3 {[%clk 0:00:15]}  Kf5 {[%clk 0:00:07]} 52. Kf3 {[%clk 0:00:15]}  Bd5+ {[%clk 0:00:07]} 53. Kf2 {[%clk 0:00:15]}  Bf6 {[%clk 0:00:07]} 54. Bd6 {[%clk 0:00:13]}  Bg5 {[%clk 0:00:07]} 55. Bb8 {[%clk 0:00:12]}  Bc1 {[%clk 0:00:07]} 56. b4 {[%clk 0:00:06]}  Bd2 {[%clk 0:00:07]} 57. Be5 {[%clk 0:00:06]}  Bxc3 {[%clk 0:00:07]} 58. Ke3 {[%clk 0:00:06]}  Bxb4 {[%clk 0:00:07]} 59. Kd3 {[%clk 0:00:06]}  Bc4+ {[%clk 0:00:07]} 60. Ke3 {[%clk 0:00:05]}  Ba3 {[%clk 0:00:07]} 61. Kf3 {[%clk 0:00:05]}  Bb2 {[%clk 0:00:07]} 62. g4+ {[%clk 0:00:05]}  hxg4+ {[%clk 0:00:06]} 63. hxg4+ {[%clk 0:00:06]}  Kg6 {[%clk 0:00:06]} 64. Ke4 {[%clk 0:00:06]}  Bf7 {[%clk 0:00:05]} 65. Bb8 {[%clk 0:00:06]}  a5 {[%clk 0:00:03]} 66. d5 {[%clk 0:00:06]}  a4 {[%clk 0:00:03]} 67. d6 {[%clk 0:00:06]}  Be8 {[%clk 0:00:04]} 68. Kd3 {[%clk 0:00:03]}  a3 {[%clk 0:00:04]} 69. Kc2 {[%clk 0:00:03]}  Bd7 {[%clk 0:00:04]} 70. Kb3 {[%clk 0:00:02]}  Kg5 {[%clk 0:00:04]} 71. Bc7 {[%clk 0:00:03]}  Kxg4 {[%clk 0:00:04]} 72. Bb6 {[%clk 0:00:00]}  Be6+ {[%clk 0:00:05]} 0-1


[Site "https://www.chess.com"]